fUST/lending_fUST_20240122
["ID","MTS","AMOUNT","RATE_DAILY","PERIOD"]
[312421723,1705867843278,-500.0,0.00027671,2]
[312421725,1705867843287,-500.0,0.00027671,2]
[312421726,1705867843296,-500.0,0.00027671,2]
[312421728,1705867843305,-500.0,0.00027671,2]
[312421730,1705867843315,-500.0,0.00027671,2]
[312421732,1705867843324,-500.0,0.00027671,2]
[312421734,1705867843334,-529.81,0.00027671,2]
[312421735,1705867843343,-500.0,0.00027671,2]
[312421736,1705867843352,-645.0704985,0.00027671,2]
[312421737,1705867843362,-500.0,0.00027671,2]
[312421738,1705867843372,-500.0,0.00027671,2]
[312421739,1705867843381,-500.0,0.00027671,2]
[312421740,1705867843390,-500.0,0.00027671,2]
[312421741,1705867843399,-500.0,0.00027671,2]
[312421742,1705867843409,-500.0,0.00027671,2]
[312421743,1705867843419,-500.0,0.00027671,2]
[312421744,1705867843429,-500.0,0.00027671,2]
[312421745,1705867843438,-500.0,0.00027671,2]
[312421746,1705867843447,-500.0,0.00027671,2]
[312421748,1705867843457,-500.0,0.00027671,2]
[312421750,1705867843467,-500.0,0.00027671,2]
[312421752,1705867843476,-500.0,0.00027671,2]
[312421754,1705867843485,-500.0,0.00027671,2]
[312421755,1705867843495,-500.0,0.00027671,2]
[312421756,1705867843504,-558.88,0.00027671,2]
[312421758,1705867843513,-792.94,0.00027671,2]
[312421759,1705867843522,-500.0,0.00027671,2]
[312421760,1705867843531,-487.49378126,0.00027671,2]
[312421761,1705867843541,-500.0,0.00027671,2]
[312421762,1705867843551,-536.77,0.00027671,2]
[312421763,1705867843559,-990.58,0.00027671,2]
[312421764,1705867843569,-202.49219079,0.00027671,2]
[312421765,1705867843588,-296.506691,0.0002767,2]
[312421766,1705867843598,-297.50780921,0.00027671,2]
[312421767,1705867843608,-500.0,0.00027671,2]
[312421768,1705867843617,-500.0,0.00027671,2]
[312421769,1705867843627,-500.0,0.00027671,2]
[312421770,1705867843637,-500.0,0.00027671,2]
[312421771,1705867843646,-500.0,0.00027671,2]
[312421772,1705867843656,-1000.0,0.00027671,2]
[312421773,1705867843665,-500.0,0.00027671,2]
[312421774,1705867843675,-500.0,0.00027671,2]
[312421775,1705867843684,-648.27,0.00027671,2]
[312421776,1705867843693,-500.0,0.00027671,2]
[312421777,1705867843702,-500.0,0.00027671,2]
[312421778,1705867843712,-500.0,0.00027671,2]
[312421779,1705867843721,-668.06,0.00027671,2]
[312421780,1705867843730,-500.0,0.00027671,2]
[312421781,1705867843740,-1942.9,0.00027671,2]
[312421782,1705867843749,-500.0,0.00027671,2]
[312421783,1705867843758,-500.0,0.00027671,2]
[312421784,1705867843767,-500.0,0.00027671,2]
[312421785,1705867843777,-500.0,0.00027671,2]
[312421786,1705867843786,-500.0,0.00027671,2]
[312421787,1705867843795,-500.0,0.00027671,2]
[312421788,1705867843804,-500.0,0.00027671,2]
[312421789,1705867843813,-500.0,0.00027671,2]
[312421790,1705867843822,-500.0,0.00027671,2]
[312421791,1705867843831,-500.0,0.00027671,2]
[312421792,1705867843841,-500.0,0.00027671,2]
[312421793,1705867843850,-500.0,0.00027671,2]
[312421794,1705867843860,-500.0,0.00027671,2]
[312421795,1705867843869,-500.0,0.00027671,2]
[312421796,1705867843879,-500.0,0.00027671,2]
[312421797,1705867843888,-1181.99,0.00027671,2]
[312421798,1705867843898,-500.0,0.00027671,2]
[312421799,1705867843907,-319.38769659,0.00027671,2]
[312421800,1705867843916,-500.0,0.00027671,2]
[312421801,1705867844031,-500.0,0.00027671,2]
[312421802,1705867844041,-500.0,0.00027671,2]
[312421803,1705867844051,-500.0,0.00027671,2]
[312421804,1705867844060,-1000.0,0.00027671,2]
[312421805,1705867844069,-500.0,0.00027671,2]
[312421806,1705867844079,-500.0,0.00027671,2]
[312421807,1705867844088,-709.09,0.00027671,2]
[312421808,1705867844098,-633.99,0.00027671,2]
[312421809,1705867844107,-500.0,0.00027671,2]
[312421810,1705867844116,-500.0,0.00027671,2]
[312421811,1705867844126,-500.0,0.00027671,2]
[312421812,1705867844135,-1257.26,0.00027671,2]
[312421813,1705867844145,-718.63,0.00027671,2]
[312421814,1705867844154,-500.0,0.00027671,2]
[312421815,1705867844163,-459.96835433,0.00027671,2]
[312421816,1705867844173,-773.08,0.00027671,2]
[312421817,1705867844182,-500.0,0.00027671,2]
[312421818,1705867844192,-500.0,0.00027671,2]
[312421819,1705867844205,-512.31,0.00027671,2]
[312421820,1705867844216,-21203.77,0.00027671,2]
[312421821,1705867844226,-500.0,0.00027671,2]
[312421822,1705867844235,-192.19323195,0.00027671,2]
[312421823,1705867844245,-508.56,0.00027671,2]
[312421824,1705867844254,-761.28,0.00027671,2]
[312421825,1705867844263,-500.0,0.00027671,2]
[312421826,1705867844272,-575.65,0.00027671,2]
[312421827,1705867844282,-500.0,0.00027671,2]
[312421828,1705867844293,-1867.16,0.00027671,2]
[312421829,1705867844302,-628.26,0.00027671,2]
[312421830,1705867844311,-1869.16,0.00027671,2]
[312421831,1705867844320,-5199.96,0.00027671,2]
[312421832,1705867844329,-869.8,0.00027671,2]
[312421833,1705867844338,-500.0,0.00027671,2]
[312421834,1705867844347,-500.0,0.00027671,2]
[312421835,1705867844357,-2301.55,0.00027671,2]
[312421836,1705867844367,-500.0,0.00027671,2]
[312421837,1705867844376,-500.0,0.00027671,2]
[312421838,1705867844385,-500.0,0.00027671,2]
[312421839,1705867844394,-500.0,0.00027671,2]
[312421840,1705867844403,-500.0,0.00027671,2]
[312421841,1705867844413,-14005.36,0.00027671,2]
[312421842,1705867844422,-500.0,0.00027671,2]
[312421843,1705867844431,-1064.28,0.00027671,2]
[312421844,1705867844440,-500.0,0.00027671,2]
[312421845,1705867844449,-500.0,0.00027671,2]
[312421846,1705867844458,-500.0,0.00027671,2]
[312421847,1705867844468,-336.38345013,0.00027671,2]
[312421848,1705867844478,-500.0,0.00027671,2]
[312421850,1705867844487,-500.0,0.00027671,2]
[312421852,1705867844497,-308.79262305,0.00027671,2]
[312421854,1705867844506,-500.0,0.00027671,2]
[312421856,1705867844515,-1046.78,0.00027671,2]
[312421858,1705867844524,-1336.34,0.00027671,2]
[312421859,1705867844533,-7744.44,0.00027671,2]
[312421861,1705867844542,-500.0,0.00027671,2]
[312421863,1705867844551,-1357.68,0.00027671,2]
[312421865,1705867844560,-500.0,0.00027671,2]
[312421867,1705867844569,-1212.92,0.00027671,2]
[312421869,1705867844579,-1758.04,0.00027671,2]
[312421871,1705867844588,-500.0,0.00027671,2]
[312421873,1705867844598,-500.0,0.00027671,2]
[312421875,1705867844607,-500.0,0.00027671,2]
[312421877,1705867844616,-500.0,0.00027671,2]
[312421879,1705867844625,-500.0,0.00027671,2]
[312421880,1705867844634,-9516.26,0.00027671,2]
[312421881,1705867844643,-500.0,0.00027671,2]
[312421882,1705867844652,-1080.91,0.00027671,2]
[312421883,1705867844662,-5518.97,0.00027671,2]
[312421884,1705867844671,-2575.48,0.00027671,2]
[312421885,1705867844680,-905.95,0.00027671,2]
[312421886,1705867844690,-7025.12,0.00027671,2]
[312421887,1705867844699,-1444.13,0.00027671,2]
[312421888,1705867844708,-500.0,0.00027671,2]
[312421889,1705867844717,-500.0,0.00027671,2]
[312421890,1705867844727,-1539.31,0.00027671,2]
[312421891,1705867844736,-500.0,0.00027671,2]
[312421892,1705867844745,-500.0,0.00027671,2]
[312421894,1705867844753,-2954.97,0.00027671,2]
[312421895,1705867844763,-153.0,0.00027671,2]
[312421896,1705867844772,-153.0,0.00027671,2]
[312421897,1705867844781,-199.1433421,0.00027671,2]
[312421898,1705867844790,-153.0,0.00027671,2]
[312421899,1705867844799,-198.4221519,0.00027671,2]
[312421900,1705867844808,-1496.91898723,0.000278,2]
[312421901,1705867844817,-1855.80105475,0.00027847,3]
[312421902,1705867844826,-5000.0,0.00027847,5]
[312421903,1705867844835,-898.6990617,0.00027847,3]
[312421904,1705867844844,-9961.74951587,0.00027847,3]
[312421905,1705867844854,-2258.92759028,0.00027847,3]
[312421906,1705867844863,-4403.17844463,0.00027847,3]
[312421907,1705867844872,-5000.0,0.00027847,5]
[312421908,1705867844880,-20884.23252327,0.00027847,5]
[312421909,1705867844889,-193.011,0.00027893,2]
[312421910,1705867844898,-250.0,0.00027893,2]
[312421911,1705867844908,-526.58797391,0.00027898,2]
[312421912,1705867844917,-296.75355326,0.00027898,2]
[312421913,1705867844926,-3786.8291009,0.00027899,2]
[312421914,1705867844935,-160.0,0.00027899,10]
[312421915,1705867844944,-751646.84630726,0.000279,2]
[312421916,1705867844953,-576.0,0.000279,2]
[312421917,1705867844962,-797.0451,0.000279,2]
[312421918,1705867844971,-441.85759612,0.00027943,2]
[312421919,1705867844980,-1244.01238669,0.00027944,2]
[312421920,1705867844989,-322.95530787,0.00027944,2]
[312421921,1705867844998,-502.27687519,0.00027945,2]
[312421922,1705867845007,-500.0,0.00027945,2]
[312421923,1705867845016,-500.0,0.00027945,2]
[312421924,1705867845025,-500.0,0.00027945,2]
[312421925,1705867845034,-500.0,0.00027945,2]
[312421926,1705867845043,-757.65,0.00027945,2]
[312421927,1705867845053,-500.0,0.00027945,2]
[312421928,1705867845062,-500.0,0.00027945,2]
[312421929,1705867845071,-880.17,0.00027945,2]
[312421930,1705867845080,-500.0,0.00027945,2]
[312421931,1705867845090,-500.0,0.00027945,2]
[312421932,1705867845099,-500.0,0.00027945,2]
[312421933,1705867845108,-802.94,0.00027945,2]
[312421934,1705867845117,-500.0,0.00027945,2]
[312421935,1705867845126,-500.0,0.00027945,2]
[312421936,1705867845136,-500.0,0.00027945,2]
[312421937,1705867845145,-914.85,0.00027945,2]
[312421938,1705867845154,-500.0,0.00027945,2]
[312421939,1705867845163,-500.0,0.00027945,2]
[312421940,1705867845172,-504.1339505,0.00027945,2]
[312421941,1705867845181,-513.71,0.00027945,2]
[312421942,1705867845191,-500.0,0.00027945,2]
[312421943,1705867845202,-500.0,0.00027945,2]
[312421944,1705867845215,-500.0,0.00027945,2]
[312421945,1705867845224,-586.46,0.00027945,2]
[312421946,1705867845234,-642.51467487,0.00027945,2]
[312421947,1705867845244,-500.0,0.00027945,2]
[312421948,1705867845253,-1850.74,0.00027945,2]
[312421949,1705867845262,-500.0,0.00027945,2]
[312421950,1705867845271,-500.0,0.00027945,2]
[312421951,1705867845281,-1844.18,0.00027945,2]
[312421952,1705867845290,-843.53,0.00027945,2]
[312421954,1705867845299,-500.0,0.00027945,2]
[312421956,1705867845308,-500.0,0.00027945,2]
[312421957,1705867845317,-500.0,0.00027945,2]
[312421958,1705867845326,-500.0,0.00027945,2]
[312421959,1705867845335,-500.0,0.00027945,2]
[312421961,1705867845344,-529.81,0.00027945,2]
[312421963,1705867845353,-500.0,0.00027945,2]
[312421965,1705867845362,-500.0,0.00027945,2]
[312421968,1705867845371,-500.0,0.00027945,2]
[312421969,1705867845381,-500.0,0.00027945,2]
[312421970,1705867845390,-500.0,0.00027945,2]
[312421971,1705867845399,-500.0,0.00027945,2]
[312421972,1705867845408,-500.0,0.00027945,2]
[312421973,1705867845417,-500.0,0.00027945,2]
[312421974,1705867845426,-500.0,0.00027945,2]
[312421975,1705867845436,-500.0,0.00027945,2]
[312421976,1705867845446,-500.0,0.00027945,2]
[312421977,1705867845455,-500.0,0.00027945,2]
[312421978,1705867845464,-558.88,0.00027945,2]
[312421979,1705867845473,-792.94,0.00027945,2]
[312421980,1705867845483,-500.0,0.00027945,2]
[312421981,1705867845492,-536.77,0.00027945,2]
[312421982,1705867845502,-990.58,0.00027945,2]
[312421983,1705867845511,-500.0,0.00027945,2]
[312421984,1705867845520,-500.0,0.00027945,2]
[312421985,1705867845529,-221.03412024,0.00027945,2]
[312421986,1705867845539,-500.0,0.00027945,2]
[312421987,1705867845549,-500.0,0.00027945,2]
[312421988,1705867845558,-1000.0,0.00027945,2]
[312421989,1705867845568,-500.0,0.00027945,2]
[312421990,1705867845577,-500.0,0.00027945,2]
[312421991,1705867845586,-648.27,0.00027945,2]
[312421992,1705867845596,-500.0,0.00027945,2]
[312421993,1705867845604,-500.0,0.00027945,2]
[312421994,1705867845613,-500.0,0.00027945,2]
[312421995,1705867845622,-668.06,0.00027945,2]
[312421996,1705867845630,-1942.9,0.00027945,2]
[312421997,1705867845639,-500.0,0.00027945,2]
[312421998,1705867845648,-500.0,0.00027945,2]
[312421999,1705867845657,-150.91379181,0.00027945,2]
[312422000,1705867845665,-500.0,0.00027945,2]
[312422001,1705867845674,-500.0,0.00027945,2]
[312422002,1705867845683,-500.0,0.00027945,2]
[312422003,1705867845691,-500.0,0.00027945,2]
[312422004,1705867845700,-500.0,0.00027945,2]
[312422005,1705867845709,-500.0,0.00027945,2]
[312422006,1705867845718,-500.0,0.00027945,2]
[312422007,1705867845726,-500.0,0.00027945,2]
[312422008,1705867845735,-500.0,0.00027945,2]
[312422009,1705867845744,-500.0,0.00027945,2]
[312422010,1705867845752,-1181.99,0.00027945,2]
[312422011,1705867845761,-500.0,0.00027945,2]
[312422012,1705867845770,-500.0,0.00027945,2]
[312422013,1705867845779,-500.0,0.00027945,2]
[312422014,1705867845788,-500.0,0.00027945,2]
[312422015,1705867845797,-500.0,0.00027945,2]
[312422016,1705867845805,-500.0,0.00027945,2]
[312422017,1705867845814,-709.09,0.00027945,2]
[312422018,1705867845823,-633.99,0.00027945,2]
[312422019,1705867845832,-500.0,0.00027945,2]
[312422020,1705867845840,-500.0,0.00027945,2]
[312422021,1705867845849,-500.0,0.00027945,2]
[312422022,1705867845858,-1257.26,0.00027945,2]
[312422023,1705867845867,-718.63,0.00027945,2]
[312422024,1705867845876,-500.0,0.00027945,2]
[312422025,1705867845885,-773.08,0.00027945,2]
[312422026,1705867845894,-500.0,0.00027945,2]
[312422027,1705867845903,-500.0,0.00027945,2]
[312422028,1705867845911,-512.31,0.00027945,2]
[312422029,1705867845920,-21203.77,0.00027945,2]
[312422030,1705867845929,-649.80351875,0.00027945,2]
[312422031,1705867845937,-508.56,0.00027945,2]
[312422032,1705867845946,-761.28,0.00027945,2]
[312422033,1705867845955,-500.0,0.00027945,2]
[312422034,1705867845963,-575.65,0.00027945,2]
[312422035,1705867845972,-500.0,0.00027945,2]
[312422036,1705867845981,-1867.16,0.00027945,2]
[312422037,1705867845991,-628.26,0.00027945,2]
[312422038,1705867846000,-1869.16,0.00027945,2]
[312422039,1705867846010,-5199.96,0.00027945,2]
[312422040,1705867846020,-869.8,0.00027945,2]
[312422041,1705867846029,-500.0,0.00027945,2]
[312422042,1705867846039,-171.16187186,0.00027945,2]
[312422043,1705867846049,-2301.55,0.00027945,2]
[312422044,1705867846058,-165.83546743,0.00027945,2]
[312422045,1705867846067,-500.0,0.00027945,2]
[312422046,1705867846077,-500.0,0.00027945,2]
[312422047,1705867846086,-500.0,0.00027945,2]
[312422048,1705867846095,-14005.36,0.00027945,2]
[312422049,1705867846104,-500.0,0.00027945,2]
[312422050,1705867846113,-1064.28,0.00027945,2]
[312422051,1705867846122,-500.0,0.00027945,2]
[312422052,1705867846132,-500.0,0.00027945,2]
[312422053,1705867846141,-500.0,0.00027945,2]
[312422054,1705867846150,-500.0,0.00027945,2]
[312422055,1705867846159,-1046.78,0.00027945,2]
[312422056,1705867846168,-1336.34,0.00027945,2]
[312422057,1705867846177,-7744.44,0.00027945,2]
[312422058,1705867846187,-500.0,0.00027945,2]
[312422059,1705867846197,-1357.68,0.00027945,2]
[312422060,1705867846209,-500.0,0.00027945,2]
[312422061,1705867846223,-1212.92,0.00027945,2]
[312422062,1705867846263,-1758.04,0.00027945,2]
[312422063,1705867846273,-500.0,0.00027945,2]
[312422064,1705867846282,-500.0,0.00027945,2]
[312422065,1705867846291,-500.0,0.00027945,2]
[312422066,1705867846300,-500.0,0.00027945,2]
[312422067,1705867846309,-9516.26,0.00027945,2]
[312422068,1705867846318,-500.0,0.00027945,2]
[312422069,1705867846328,-1080.91,0.00027945,2]
[312422070,1705867846337,-5518.97,0.00027945,2]
[312422071,1705867846346,-2575.48,0.00027945,2]
[312422072,1705867846355,-905.95,0.00027945,2]
[312422073,1705867846365,-7025.12,0.00027945,2]
[312422074,1705867846458,-1444.13,0.00027945,2]
[312422075,1705867846478,-500.0,0.00027945,2]
[312422076,1705867846487,-500.0,0.00027945,2]
[312422077,1705867846496,-1539.31,0.00027945,2]
[312422078,1705867846505,-263.76446856,0.00027945,2]
[312422079,1705867846514,-500.0,0.00027945,2]
[312422080,1705867846524,-2954.97,0.00027945,2]
[312422081,1705867846533,-306.0,0.00027945,2]
[312422082,1705867846542,-290.23210975,0.00028,2]
[312422083,1705867846552,-277.23266737,0.00028,2]
[312422084,1705867846562,-4119.03611754,0.00028,2]
[312422085,1705867846572,-313.08093929,0.00028,7]
[312422086,1705867846580,-300.6396773,0.00028,2]
[312422087,1705867846589,-1500.0,0.00028,2]
[312422088,1705867846599,-151.0,0.00028167,2]
[312422090,1705867846608,-1704.08426279,0.00028206,2]
[312422092,1705867846617,-411.16542079,0.00028219,2]
[312422093,1705867846626,-500.0,0.00028219,2]
[312422094,1705867846635,-500.0,0.00028219,2]
[312422095,1705867846644,-500.0,0.00028219,2]
[312422096,1705867846653,-757.65,0.00028219,2]
[312422097,1705867846662,-500.0,0.00028219,2]
[312422098,1705867846671,-500.0,0.00028219,2]
[312422099,1705867846680,-880.17,0.00028219,2]
[312422100,1705867846689,-500.0,0.00028219,2]
[312422101,1705867846698,-500.0,0.00028219,2]
[312422102,1705867846707,-500.0,0.00028219,2]
[312422103,1705867846716,-802.94,0.00028219,2]
[312422104,1705867846725,-500.0,0.00028219,2]
[312422105,1705867846735,-500.0,0.00028219,2]
[312422106,1705867846744,-500.0,0.00028219,2]
[312422107,1705867846753,-914.85,0.00028219,2]
[312422108,1705867846762,-374.03606538,0.00028219,2]
[312422109,1705867846771,-516.43736873,0.00028219,2]
[312422110,1705867846780,-513.71,0.00028219,2]
[312422111,1705867846789,-500.0,0.00028219,2]
[312422112,1705867846798,-500.0,0.00028219,2]
[312422113,1705867846807,-586.46,0.00028219,2]
[312422114,1705867846816,-500.0,0.00028219,2]
[312422115,1705867846825,-1850.74,0.00028219,2]
[312422116,1705867846835,-500.0,0.00028219,2]
[312422117,1705867846844,-500.0,0.00028219,2]
[312422118,1705867846853,-1844.18,0.00028219,2]
[312422119,1705867846862,-843.53,0.00028219,2]
[312422120,1705867846871,-500.0,0.00028219,2]
[312422121,1705867846880,-500.0,0.00028219,2]
[312422122,1705867846889,-330.07898599,0.00028219,2]
[312422123,1705867846899,-500.0,0.00028219,2]
[312422124,1705867846907,-500.0,0.00028219,2]
[312422125,1705867846917,-529.81,0.00028219,2]
[312422126,1705867846926,-500.0,0.00028219,2]
[312422127,1705867846935,-500.0,0.00028219,2]
[312422128,1705867846945,-500.0,0.00028219,2]
[312422129,1705867846954,-243.80797857,0.00028219,2]
[312422130,1705867846963,-500.0,0.00028219,2]
[312422131,1705867846973,-500.0,0.00028219,2]
[312422132,1705867846981,-500.0,0.00028219,2]
[312422133,1705867846991,-500.0,0.00028219,2]
[312422134,1705867847000,-500.0,0.00028219,2]
[312422135,1705867847010,-500.0,0.00028219,2]
[312422136,1705867847019,-500.0,0.00028219,2]
[312422137,1705867847028,-558.88,0.00028219,2]
[312422138,1705867847037,-792.94,0.00028219,2]
[312422139,1705867847046,-500.0,0.00028219,2]
[312422140,1705867847055,-536.77,0.00028219,2]
[312422141,1705867847065,-990.58,0.00028219,2]
[312422142,1705867847074,-500.0,0.00028219,2]
[312422143,1705867847083,-500.0,0.00028219,2]
[312422144,1705867847092,-500.0,0.00028219,2]
[312422145,1705867847102,-500.0,0.00028219,2]
[312422146,1705867847111,-1000.0,0.00028219,2]
[312422147,1705867847120,-500.0,0.00028219,2]
[312422148,1705867847129,-500.0,0.00028219,2]
[312422149,1705867847138,-648.27,0.00028219,2]
[312422150,1705867847147,-500.0,0.00028219,2]
[312422151,1705867847156,-500.0,0.00028219,2]
[312422152,1705867847165,-500.0,0.00028219,2]
[312422153,1705867847175,-668.06,0.00028219,2]
[312422154,1705867847184,-1942.9,0.00028219,2]
[312422155,1705867847194,-500.0,0.00028219,2]
[312422156,1705867847205,-500.0,0.00028219,2]
[312422157,1705867847215,-500.0,0.00028219,2]
[312422158,1705867847224,-500.0,0.00028219,2]
[312422159,1705867847233,-500.0,0.00028219,2]
[312422160,1705867847243,-500.0,0.00028219,2]
[312422161,1705867847253,-456.24369691,0.00028219,2]
[312422162,1705867847261,-500.0,0.00028219,2]
[312422163,1705867847270,-500.0,0.00028219,2]
[312422164,1705867847280,-500.0,0.00028219,2]
[312422165,1705867847290,-500.0,0.00028219,2]
[312422166,1705867847299,-500.0,0.00028219,2]
[312422167,1705867847309,-1181.99,0.00028219,2]
[312422168,1705867847319,-500.0,0.00028219,2]
[312422169,1705867847328,-500.0,0.00028219,2]
[312422170,1705867847337,-500.0,0.00028219,2]
[312422171,1705867847346,-500.0,0.00028219,2]
[312422172,1705867847355,-500.0,0.00028219,2]
[312422173,1705867847364,-500.0,0.00028219,2]
[312422174,1705867847373,-709.09,0.00028219,2]
[312422175,1705867847382,-633.99,0.00028219,2]
[312422176,1705867847391,-500.0,0.00028219,2]
[312422177,1705867847400,-500.0,0.00028219,2]
[312422178,1705867847409,-490.46605925,0.00028219,2]
[312422179,1705867847419,-1257.26,0.00028219,2]
[312422180,1705867847428,-718.63,0.00028219,2]
[312422181,1705867847437,-500.0,0.00028219,2]
[312422182,1705867847446,-773.08,0.00028219,2]
[312422183,1705867847456,-500.0,0.00028219,2]
[312422184,1705867847465,-500.0,0.00028219,2]
[312422185,1705867847474,-512.31,0.00028219,2]
[312422186,1705867847482,-21203.77,0.00028219,2]
[312422187,1705867847491,-508.56,0.00028219,2]
[312422188,1705867847500,-761.28,0.00028219,2]
[312422189,1705867847509,-500.0,0.00028219,2]
[312422190,1705867847518,-575.65,0.00028219,2]
[312422191,1705867847527,-500.0,0.00028219,2]
[312422192,1705867847536,-1867.16,0.00028219,2]
[312422193,1705867847545,-628.26,0.00028219,2]
[312422194,1705867847554,-1869.16,0.00028219,2]
[312422195,1705867847563,-5199.96,0.00028219,2]
[312422196,1705867847573,-869.8,0.00028219,2]
[312422197,1705867847581,-500.0,0.00028219,2]
[312422198,1705867847591,-2301.55,0.00028219,2]
[312422199,1705867847600,-500.0,0.00028219,2]
[312422200,1705867847609,-500.0,0.00028219,2]
[312422201,1705867847618,-423.02517394,0.00028219,2]
[312422202,1705867847627,-14005.36,0.00028219,2]
[312422203,1705867847636,-500.0,0.00028219,2]
[312422204,1705867847645,-1064.28,0.00028219,2]
[312422205,1705867847655,-500.0,0.00028219,2]
[312422206,1705867847664,-200.80876799,0.00028219,2]
[312422207,1705867847673,-500.0,0.00028219,2]
[312422208,1705867847682,-1046.78,0.00028219,2]
[312422209,1705867847691,-1336.34,0.00028219,2]
[312422210,1705867847700,-7744.44,0.00028219,2]
[312422211,1705867847710,-500.0,0.00028219,2]
[312422212,1705867847719,-1357.68,0.00028219,2]
[312422213,1705867847729,-500.0,0.00028219,2]
[312422214,1705867847739,-1212.92,0.00028219,2]
[312422215,1705867847749,-1758.04,0.00028219,2]
[312422216,1705867847758,-500.0,0.00028219,2]
[312422217,1705867847767,-500.0,0.00028219,2]
[312422218,1705867847776,-500.0,0.00028219,2]
[312422219,1705867847786,-9516.26,0.00028219,2]
[312422220,1705867847796,-239.29179191,0.00028219,2]
[312422221,1705867847806,-1080.91,0.00028219,2]
[312422222,1705867847815,-5518.97,0.00028219,2]
[312422223,1705867847825,-2575.48,0.00028219,2]
[312422224,1705867847835,-905.95,0.00028219,2]
[312422225,1705867847844,-7025.12,0.00028219,2]
[312422226,1705867847853,-1444.13,0.00028219,2]
[312422227,1705867847862,-500.0,0.00028219,2]
[312422228,1705867847871,-500.0,0.00028219,2]
[312422229,1705867847881,-1539.31,0.00028219,2]
[312422230,1705867847890,-500.0,0.00028219,2]
[312422231,1705867847899,-2954.97,0.00028219,2]
[312422232,1705867847908,-1000.0,0.0002824,2]
[312422233,1705867847918,-1000.0,0.00028328,2]
[312422234,1705867847928,-710.53399492,0.00028357,2]
[312422235,1705867847938,-1000.0,0.00028381,2]
[312422236,1705867847948,-1000.0,0.0002839,2]
[312422237,1705867847956,-215.52366303,0.00028402,2]
[312422238,1705867847967,-1000.0,0.00028409,2]
[312422239,1705867847976,-155.18221375,0.00028491,2]
[312422240,1705867847986,-155.37359722,0.00028491,2]
[312422241,1705867847996,-155.83609625,0.00028491,2]
[312422242,1705867848006,-12434.84622913,0.00028491,2]
[312422243,1705867848015,-850.72213085,0.00028492,2]
[312422244,1705867848025,-468.92844637,0.00028493,2]
[312422245,1705867848036,-500.0,0.00028493,2]
[312422246,1705867848047,-500.0,0.00028493,2]
[312422247,1705867848056,-757.65,0.00028493,2]
[312422248,1705867848066,-500.0,0.00028493,2]
[312422249,1705867848075,-500.0,0.00028493,2]
[312422250,1705867848084,-880.17,0.00028493,2]
[312422251,1705867848093,-500.0,0.00028493,2]
[312422252,1705867848102,-500.0,0.00028493,2]
[312422253,1705867848112,-500.0,0.00028493,2]
[312422254,1705867848121,-802.94,0.00028493,2]
[312422255,1705867848131,-500.0,0.00028493,2]
[312422256,1705867848141,-500.0,0.00028493,2]
[312422257,1705867848150,-500.0,0.00028493,2]